bitfinex/quotes_SOLUSD_20220228
["timestamp","ask_amount","ask_price","bid_price","bid_amount"]
[1646027255208,4.618,86.635,86.572,60.408063]
[1646027255405,115.3,86.634,86.572,60.408063]
[1646027255607,2.74678921,86.628,86.572,60.408063]
[1646027255809,17.3365,86.62,86.572,60.408063]
[1646027256008,6.20449736,86.619,86.551,23.8555]
[1646027256210,1.85471221,86.617,86.532,47.0253]
[1646027256410,4.62,86.616,86.533,6.0]
[1646027256907,2.74678921,86.615,86.533,58.26129138]
[1646027257511,17.3386,86.6,86.533,58.26129138]
[1646027257710,29.5479,86.599,86.533,58.26129138]
[1646027257909,6.0,86.598,86.533,58.26129138]
[1646027260312,6.0,86.598,86.534,6.0]
[1646027260712,6.0,86.598,86.533,58.26129138]
[1646027260913,6.0,86.598,86.534,6.0]
[1646027261315,6.0,86.598,86.533,58.26129138]
[1646027261514,17.3408,86.59,86.533,58.26129138]
[1646027262214,24.9279,86.599,86.533,58.26129138]
[1646027262414,24.9279,86.599,86.534,6.0]
[1646027262816,6.0,86.598,86.534,6.0]
[1646027263717,115.3,86.597,86.533,58.26129138]
[1646027263918,119.92,86.596,86.534,6.0]
[1646027264126,1.53511645,86.595,86.533,58.26129138]
[1646027264319,4.62,86.594,86.533,58.26129138]
[1646027264520,6.0,86.598,86.533,58.26129138]
[1646027265822,6.0,86.598,86.534,6.0]
[1646027266422,6.0,86.598,86.535,6.0]
[1646027266622,6.0,86.598,86.534,6.0]
[1646027268925,17.3406,86.59,86.533,58.26129138]
[1646027269126,1.52314436,86.589,86.533,58.26129138]
[1646027269325,25.46934436,86.589,86.533,58.26129138]
[1646027269528,23.9462,86.589,86.533,58.26129138]
[1646027270931,6.0,86.588,86.533,58.26129138]
[1646027272950,115.3,86.579,86.51,17.3431]
[1646027273151,6.14767752,86.578,86.502,23.4213]
[1646027273352,1.38306356,86.576,86.502,23.4213]
[1646027273553,4.621,86.575,86.502,23.4213]
[1646027273954,4.621,86.575,86.517,57.11978834]
[1646027274152,17.3458,86.57,86.502,23.4213]
[1646027274554,4.622,86.569,86.502,23.4213]
[1646027275053,4.622,86.573,86.503,54.10111875]
[1646027275454,1.38306356,86.576,86.503,54.10111875]
[1646027276557,17.3445,86.57,86.503,54.10111875]
[1646027277158,10.622,86.569,86.503,54.10111875]
[1646027278558,6.0,86.569,86.503,54.10111875]
[1646027278758,6.0,86.569,86.51,17.343]
[1646027278968,23.3428,86.577,86.51,17.343]
[1646027279163,4.622,86.591,86.511,115.3]
[1646027279360,1.60637635,86.653,86.511,115.3]
[1646027279361,46.7631,86.594,86.512,6.0]
[1646027279560,46.7631,86.594,86.512,8.74678921]
[1646027279761,17.3385,86.6,86.521,115.3]
[1646027279960,17.3385,86.6,86.512,11.52340857]
[1646027279961,4.621,86.619,86.531,115.3]
[1646027280161,47.1469,86.638,86.541,115.3]
[1646027280363,47.1469,86.638,86.55,14.05]
[1646027280560,47.1469,86.638,86.551,6.0]
[1646027280960,4.619,86.637,86.551,6.0]
[1646027281361,6.0,86.636,86.551,6.0]
[1646027281569,17.3326,86.63,86.57,17.3305]
[1646027281764,4.618,86.629,86.571,46.69440074]
[1646027283068,1.68296068,86.619,86.571,46.69440074]
[1646027283464,4.619,86.618,86.571,46.69440074]
[1646027283665,1.69526056,86.626,86.571,46.69440074]
[1646027283866,4.619,86.625,86.571,46.69440074]
[1646027284466,17.337,86.61,86.571,46.69440074]
[1646027287569,17.337,86.61,86.55,17.3361]
[1646027287770,17.3392,86.6,86.543,22.8874]
[1646027288570,17.3392,86.6,86.544,46.66781988]
[1646027289172,4.62,86.599,86.544,46.66781988]
[1646027289575,17.3407,86.59,86.544,46.66781988]
[1646027291377,6.0,86.589,86.544,46.66781988]
[1646027293880,6.0,86.588,86.544,46.66781988]
[1646027294179,27.4973,86.599,86.544,46.66781988]
[1646027294479,6.0,86.598,86.544,46.66781988]
[1646027297581,17.3368,86.61,86.544,46.66781988]
[1646027297884,27.9635,86.628,86.545,6.0]
[1646027299282,27.9635,86.628,86.55,14.05]
[1646027299484,17.3345,86.62,86.551,6.0]
[1646027300284,23.3435,86.628,86.551,6.0]
[1646027300482,23.3435,86.628,86.551,8.69992551]
[1646027300887,17.3308,86.64,86.561,3.12390909]
[1646027301081,4.618,86.655,86.571,46.07733702]
[1646027301283,1.54089835,86.666,86.572,6.0]
[1646027301483,4.617,86.665,86.573,24.3312]
[1646027301683,1.61479694,86.664,86.574,6.0]
[1646027301983,17.3288,86.65,86.58,17.3296]
[1646027302188,4.618,86.649,86.581,6.0]
[1646027302384,6.0,86.648,86.581,6.0]
[1646027302585,17.3288,86.65,86.581,6.0]
[1646027302786,6.0,86.649,86.581,6.0]
[1646027304088,6.0,86.649,86.58,31.3796]
[1646027304693,6.0,86.649,86.581,6.0]
[1646027306394,30.7178,86.649,86.581,6.0]
[1646027307215,1.6552127,86.639,86.581,6.0]
[1646027307615,6.37656835,86.639,86.581,6.0]
[1646027307816,6.37656835,86.639,86.573,24.3312]
[1646027308113,4.618,86.639,86.573,24.3312]
[1646027308313,4.618,86.646,86.573,24.3312]
[1646027308713,1.62813225,86.647,86.573,24.3312]
[1646027309316,24.7178,86.649,86.573,24.3312]
[1646027309514,24.7178,86.649,86.574,6.0]
[1646027309916,9.98256911,86.648,86.574,6.0]
[1646027310216,24.7178,86.649,86.574,6.0]
[1646027310415,17.3307,86.64,86.58,17.3296]
[1646027310617,17.3307,86.64,86.581,6.0]
[1646027311214,17.3307,86.64,86.58,17.3296]
[1646027311415,24.7178,86.649,86.581,6.0]
[1646027311615,6.0,86.648,86.581,6.0]
[1646027312016,9.99001795,86.647,86.59,17.3277]
[1646027312817,6.0,86.648,86.59,17.3277]
[1646027313417,6.0,86.648,86.591,6.0]
[1646027313617,17.3265,86.66,86.591,6.0]
[1646027313818,6.0,86.659,86.601,49.12578064]
[1646027314018,16.00163979,86.659,86.602,6.0]
[1646027314320,10.00163979,86.658,86.602,6.0]
[1646027314919,10.00163979,86.658,86.601,49.12578064]
[1646027315818,10.00163979,86.659,86.601,49.12578064]
[1646027316117,17.3265,86.66,86.601,49.12578064]
[1646027316517,29.56015953,86.684,86.61,17.324]
[1646027316722,22.9695,86.683,86.611,22.8235]
[1646027317019,32.98351006,86.683,86.612,6.0]
[1646027317221,10.01401006,86.682,86.612,6.0]
[1646027318619,10.01401006,86.682,86.631,46.07733702]
[1646027319020,6.0,86.681,86.631,46.07733702]
[1646027319723,10.01401006,86.68,86.631,46.07733702]
[1646027320121,6.0,86.681,86.631,46.07733702]
[1646027321023,6.0,86.68,86.631,46.07733702]
[1646027321222,17.3228,86.68,86.631,46.07733702]
[1646027321426,6.0,86.679,86.631,46.07733702]
[1646027322022,17.3228,86.68,86.631,46.07733702]
[1646027323224,17.3249,86.67,86.58,57.7483]
[1646027323424,121.61085754,86.669,86.57,47.1619]
[1646027323624,1.4907601,86.668,86.57,61.2119]
[1646027323925,1.53305265,86.666,86.57,61.2119]
[1646027324124,4.617,86.665,86.57,61.2119]
[1646027324324,48.0347,86.664,86.571,47.9786411]
[1646027324528,17.3277,86.66,86.58,17.33]
[1646027324728,6.24899972,86.659,86.58,17.33]
[1646027324925,11.62938522,86.659,86.58,17.33]
[1646027325325,4.617,86.658,86.58,17.33]
[1646027325528,4.617,86.662,86.58,17.33]
[1646027325727,6.33160604,86.663,86.58,17.33]
[1646027326129,9.97764392,86.662,86.58,17.33]
[1646027326327,119.917,86.661,86.58,17.33]
[1646027326526,1.7004433,86.648,86.571,47.9786411]
[1646027326726,148.6674,86.647,86.571,47.9786411]
[1646027326927,1.59647583,86.646,86.571,47.9786411]
[1646027327127,4.618,86.645,86.571,47.9786411]
[1646027327527,17.3322,86.64,86.571,47.9786411]
[1646027327730,1.44238474,86.639,86.571,47.9786411]
[1646027329031,4.618,86.638,86.571,47.9786411]
[1646027329834,1.61556304,86.629,86.571,47.9786411]
[1646027331431,17.3327,86.63,86.571,47.9786411]
[1646027331631,1.68306975,86.645,86.58,17.33]
[1646027331833,22.7494,86.647,86.58,17.33]
[1646027332032,1.42047553,86.646,86.58,17.33]
[1646027332435,4.618,86.645,86.58,17.33]
[1646027332633,17.3307,86.64,86.58,17.33]
[1646027332832,17.3307,86.64,86.571,47.9786411]
[1646027333037,1.8637474,86.639,86.571,47.9786411]
[1646027333433,6.95,86.64,86.571,47.9786411]
[1646027333732,115.3,86.638,86.571,47.9786411]
[1646027333935,1.68909172,86.636,86.571,47.9786411]
[1646027334133,6.17214669,86.635,86.571,47.9786411]
[1646027334532,17.3327,86.63,86.571,47.9786411]
[1646027334734,116.98410996,86.629,86.571,47.9786411]
[1646027335040,1.56702386,86.628,86.571,47.9786411]
[1646027337437,6.0,86.627,86.571,47.9786411]
[1646027340744,1.8629543,86.654,86.571,47.9786411]
[1646027340941,10.618,86.653,86.572,6.0]
[1646027341241,10.618,86.653,86.58,14.05]
[1646027342446,17.3286,86.65,86.581,6.0]
[1646027342844,6.0,86.649,86.581,6.0]
[1646027344445,6.0,86.649,86.59,17.3277]
[1646027344852,6.0,86.649,86.59,31.3777]
[1646027345247,6.0,86.649,86.59,17.3277]
[1646027345745,4.617,86.648,86.59,17.3277]
[1646027346346,4.617,86.649,86.59,17.3277]
[1646027346547,17.3286,86.65,86.59,31.3777]
[1646027347146,17.3286,86.65,86.59,17.3277]
[1646027347750,17.3286,86.65,86.59,31.3777]
[1646027347949,24.526,86.659,86.59,31.3777]
[1646027348150,24.526,86.659,86.59,37.3777]
[1646027349153,17.3288,86.65,86.59,37.3777]
[1646027349551,17.3288,86.65,86.59,23.3277]
[1646027349752,23.3288,86.65,86.59,23.3277]
[1646027349953,24.851,86.649,86.59,23.3277]
[1646027354261,4.617,86.648,86.59,23.3277]
[1646027354557,29.468,86.649,86.59,23.3277]
[1646027357270,29.468,86.649,86.59,17.3277]
[1646027357471,24.851,86.649,86.59,17.3277]
[1646027359777,17.3306,86.64,86.578,22.5642]
[1646027359977,1.35830146,86.638,86.572,23.901]
[1646027360378,10.00884502,86.637,86.572,23.901]
[1646027360677,1.62908105,86.636,86.572,23.901]
[1646027361179,10.00884502,86.635,86.572,23.901]
[1646027361382,1.55493837,86.634,86.572,23.901]
[1646027361579,17.3325,86.63,86.572,23.901]
[1646027361779,1.72160789,86.629,86.572,23.901]
[1646027361982,1.64076477,86.627,86.572,23.901]
[1646027362380,23.4573,86.628,86.572,23.901]
[1646027370589,1.4201971,86.627,86.572,23.901]
[1646027370789,17.3347,86.62,86.56,17.3339]
[1646027370989,17.3347,86.62,86.552,22.8865]
[1646027371190,115.3,86.618,86.552,22.8865]
[1646027371388,29.4627,86.617,86.552,22.8865]
[1646027371590,1.6782236,86.616,86.552,22.8865]
[1646027371788,4.619,86.615,86.552,22.8865]
[1646027371991,17.3384,86.61,86.553,50.54838344]
[1646027372190,6.45801911,86.609,86.553,50.54838344]
[1646027372790,6.45801911,86.609,86.552,22.8865]
[1646027372791,115.3,86.608,86.531,23.2775]
[1646027372993,115.3,86.599,86.531,23.24663516]
[1646027373291,1.80708152,86.597,86.531,23.24663516]
[1646027373491,4.62,86.596,86.531,23.24663516]
[1646027373892,4.62,86.596,86.51,17.3436]
[1646027374092,115.3,86.594,86.51,17.3436]
[1646027374291,6.41018294,86.593,86.51,17.3436]
[1646027374893,6.41018294,86.593,86.511,43.60537479]
[1646027375592,17.3433,86.58,86.511,43.60537479]
[1646027375792,1.38463386,86.578,86.511,43.60537479]
[1646027378097,17.3447,86.57,86.511,43.60537479]
[1646027378497,1.54451542,86.569,86.511,43.60537479]
[1646027378700,22.924,86.568,86.511,43.60537479]
[1646027379902,1.37361937,86.567,86.511,43.60537479]
[1646027380704,1.37361937,86.567,86.51,17.3436]
[1646027380905,115.3,86.559,86.48,2.74678921]
[1646027381104,1.8740125,86.557,86.483,22.8742]
[1646027381308,4.623,86.556,86.483,22.8742]
[1646027381506,115.3,86.555,86.483,22.8742]
[1646027381726,6.38961167,86.554,86.489,57.58688478]
[1646027381926,17.3513,86.54,86.47,17.35]
[1646027382229,17.3513,86.54,86.461,4.623]
[1646027382230,121.7018491,86.539,86.455,26.8141]
[1646027382426,1.83640908,86.538,86.436,24.8198]
[1646027382630,1.5595372,86.536,86.436,24.8198]
[1646027382927,4.625,86.535,86.437,59.49572535]
[1646027383125,115.3,86.534,86.437,59.49572535]
[1646027383326,115.3,86.532,86.437,59.49572535]
[1646027383526,115.3,86.53,86.437,59.49572535]
[1646027383726,9.04,86.535,86.437,59.49572535]
[1646027383727,121.3965741,86.529,86.437,59.49572535]
[1646027383929,115.3,86.527,86.438,24.1605]
[1646027384127,115.3,86.525,86.438,24.1605]
[1646027384327,115.3,86.523,86.438,24.1605]
[1646027384529,115.3,86.519,86.44,17.3579]
[1646027384727,1.67108482,86.518,86.44,23.3579]
[1646027385130,4.625,86.522,86.44,23.3579]
[1646027385327,1.70621984,86.527,86.44,23.3579]
[1646027385328,1.70621984,86.527,86.441,4.625]
[1646027385528,17.3505,86.54,86.46,17.3509]
[1646027385728,1.44135949,86.539,86.461,4.624]
[1646027386128,1.44135949,86.539,86.46,6.0]
[1646027386329,1.44135949,86.539,86.461,24.2769]
[1646027386533,1.44135949,86.539,86.462,4.624]
[1646027386730,1.44135949,86.539,86.471,35.70739231]
[1646027388133,23.3526,86.53,86.471,35.70739231]
[1646027389934,4.624,86.529,86.471,35.70739231]
[1646027391135,25.53430518,86.528,86.471,35.70739231]
[1646027392137,4.624,86.527,86.471,35.70739231]
[1646027394242,24.1547,86.528,86.471,35.70739231]
[1646027395438,24.1547,86.528,86.48,17.3503]
[1646027395841,4.624,86.542,86.481,115.3]
[1646027396040,1.60423153,86.625,86.481,115.3]
[1646027396041,4.623,86.576,86.482,4.623]
[1646027396241,4.622,86.588,86.483,161.8447]
[1646027396640,4.622,86.588,86.484,4.622]
[1646027396843,2.74678921,86.587,86.484,4.622]
[1646027397140,1.56649801,86.585,86.484,4.622]
[1646027397340,4.622,86.584,86.483,46.5447]
[1646027397541,17.3437,86.58,86.51,17.3437]
[1646027397740,17.3437,86.58,86.511,43.14356437]
[1646027397741,6.23078727,86.579,86.511,43.14356437]
[1646027400341,8.97757648,86.579,86.511,43.14356437]
[1646027400544,4.621,86.579,86.52,17.3423]
[1646027401042,23.3437,86.58,86.52,17.3423]
[1646027401243,6.0,86.58,86.52,17.3423]
[1646027401443,4.621,86.585,86.52,17.3423]
[1646027401745,24.7163,86.586,86.52,17.3423]
[1646027401746,2.74678921,86.579,86.52,17.3423]
[1646027402143,24.7163,86.586,86.52,17.3423]
[1646027402543,2.74678921,86.585,86.52,17.3423]
[1646027405745,4.27308953,86.585,86.52,17.3423]
[1646027405947,17.3438,86.58,86.52,17.3423]
[1646027406245,17.3438,86.58,86.512,22.5795]
[1646027406246,6.08419761,86.579,86.512,22.5795]
[1646027406445,1.46319761,86.579,86.512,22.5795]
[1646027406845,1.46319761,86.579,86.513,6.0]
[1646027408050,4.20998682,86.579,86.513,6.0]
[1646027408850,4.621,86.578,86.513,6.0]
[1646027410349,2.74678921,86.577,86.513,6.0]
[1646027410551,1.46319761,86.579,86.52,17.3421]
[1646027410950,24.7163,86.586,86.52,17.3421]
[1646027411150,24.7163,86.586,86.521,6.0]
[1646027411751,24.7163,86.586,86.53,17.3403]
[1646027411951,4.621,86.615,86.53,17.3403]
[1646027412154,17.3372,86.61,86.531,30.4547]
[1646027412355,4.62,86.609,86.531,30.4547]
[1646027412551,4.62,86.609,86.532,115.3]
[1646027412752,4.62,86.609,86.531,30.4547]
[1646027412753,4.62,86.628,86.534,115.3]
[1646027412953,6.0,86.627,86.537,53.65604721]
[1646027413150,4.619,86.626,86.54,14.05]
[1646027413351,45.8344,86.629,86.541,6.0]
[1646027413551,6.0,86.628,86.542,22.7013]
[1646027413756,6.0,86.628,86.543,8.98030746]
[1646027414555,6.0,86.628,86.55,17.3361]
[1646027414759,4.619,86.627,86.551,6.0]
[1646027415156,4.619,86.628,86.551,6.0]
[1646027415374,45.8344,86.629,86.552,24.4874]
[1646027415575,45.8344,86.629,86.553,6.0]
[1646027415976,6.0,86.628,86.553,6.0]
[1646027416580,6.0,86.628,86.56,17.3333]
[1646027416777,6.0,86.628,86.561,6.0]
[1646027417477,7.36578921,86.627,86.561,6.0]
[1646027417878,6.0,86.628,86.57,17.3321]
[1646027418080,10.618,86.628,86.571,50.30393709]
[1646027418379,6.0,86.628,86.571,44.30393709]
[1646027418577,6.0,86.628,86.57,17.3321]
[1646027418578,2.74678921,86.627,86.552,24.4874]
[1646027418780,4.619,86.626,86.552,24.4874]
[1646027418979,6.44848427,86.626,86.552,24.4874]
[1646027419180,4.15493991,86.625,86.552,24.4874]
[1646027419381,4.619,86.624,86.552,24.4874]
[1646027419584,7.36578921,86.624,86.553,60.86824803]
[1646027420083,17.3354,86.62,86.553,60.86824803]
[1646027420280,2.74678921,86.623,86.56,17.3343]
[1646027420482,1.4081507,86.625,86.56,17.3343]
[1646027420882,45.8344,86.629,86.56,17.3343]
[1646027421283,45.8344,86.629,86.561,6.0]
[1646027422783,6.0,86.628,86.561,6.0]
[1646027424085,6.0,86.628,86.56,17.3343]
[1646027426890,17.3352,86.62,86.56,17.3343]
[1646027427290,25.58795865,86.619,86.56,17.3343]
[1646027427493,1.76712864,86.618,86.56,17.3343]
[1646027430595,6.0,86.617,86.56,17.3343]
[1646027431796,1.76712864,86.618,86.56,17.3343]
[1646027432796,24.0052,86.619,86.56,17.3343]
[1646027433200,17.3331,86.63,86.561,6.0]
[1646027433398,17.3331,86.63,86.562,23.1922]
[1646027433597,2.74678921,86.628,86.563,6.0]
[1646027433998,23.0629,86.627,86.563,6.0]
[1646027434198,7.47576239,86.626,86.563,6.0]
[1646027434400,10.2225516,86.626,86.562,23.1922]
[1646027434601,17.335,86.62,86.562,23.1922]
[1646027435401,1.69176542,86.619,86.562,23.1922]
[1646027436500,7.36578921,86.625,86.57,17.332]
[1646027436700,6.0,86.626,86.57,17.332]
[1646027439704,23.0629,86.627,86.57,17.332]
[1646027442006,1.42146691,86.626,86.57,17.332]
[1646027443306,17.3349,86.62,86.562,23.1922]
[1646027447112,6.0,86.619,86.562,23.1922]
[1646027450835,6.0,86.619,86.57,17.3319]
[1646027451038,4.619,86.626,86.57,17.3319]
[1646027451238,17.3332,86.63,86.57,17.3319]
[1646027452839,2.74678921,86.626,86.57,17.3319]
[1646027453040,4.10404481,86.626,86.563,6.0]
[1646027453245,9.99873832,86.625,86.562,23.1922]
[1646027453440,12.74552753,86.625,86.562,23.1922]
[1646027453639,1.86032662,86.624,86.562,23.1922]
[1646027453839,12.74552753,86.625,86.563,6.0]
[1646027454042,1.78554138,86.642,86.57,17.3322]
[1646027454240,1.78554138,86.642,86.571,6.0]
[1646027454440,10.02381598,86.641,86.571,6.0]
[1646027454641,6.0,86.64,86.571,6.0]
[1646027454840,6.0,86.64,86.572,24.6196]
[1646027455042,7.61966926,86.64,86.573,6.0]
[1646027455242,10.02381598,86.639,86.573,6.0]
[1646027456444,10.02381598,86.639,86.58,17.3297]
[1646027456646,10.02381598,86.639,86.582,34.33486963]
[1646027456845,10.02381598,86.639,86.583,6.0]
[1646027458346,6.0,86.638,86.583,6.0]
[1646027458946,10.02381598,86.637,86.583,6.0]
[1646027459445,10.02381598,86.637,86.59,17.328]
[1646027460046,10.02381598,86.637,86.591,6.0]
[1646027460247,10.02381598,86.644,86.591,6.0]
[1646027460445,10.02381598,86.644,86.6,17.3255]
[1646027460646,24.0801,86.684,86.601,125.917]
[1646027460850,24.0801,86.684,86.604,2.73293168]
[1646027461049,10.07326515,86.683,86.606,115.3]
[1646027461250,10.07326515,86.683,86.61,115.3]
[1646027461448,10.07326515,86.683,86.611,10.616]
[1646027461847,10.07326515,86.683,86.62,17.3206]
[1646027462148,10.07326515,86.683,86.621,10.616]
[1646027462749,1.40063474,86.706,86.621,10.616]
[1646027462951,1.85519737,86.704,86.622,22.6225]
[1646027463148,4.615,86.703,86.623,6.0]
[1646027463552,17.3189,86.7,86.63,17.3189]
[1646027463754,17.3189,86.7,86.631,6.0]
[1646027463950,10.07326515,86.699,86.631,6.0]
[1646027465150,4.615,86.698,86.631,6.0]
[1646027465554,10.07326515,86.697,86.631,6.0]
[1646027465751,4.615,86.696,86.631,6.0]
[1646027466255,10.07326515,86.695,86.631,6.0]
[1646027466652,10.07326515,86.694,86.631,6.0]
[1646027467053,35.7918488,86.693,86.631,6.0]
[1646027467254,1.66405634,86.692,86.631,6.0]
[1646027467755,10.07326515,86.691,86.631,6.0]
[1646027468157,10.07326515,86.69,86.631,6.0]
[1646027468457,10.07326515,86.69,86.63,17.3189]
[1646027468657,10.07326515,86.689,86.63,17.3189]
[1646027469057,10.07326515,86.688,86.63,17.3189]
[1646027469457,10.07326515,86.687,86.63,17.3189]
[1646027469858,10.07326515,86.686,86.63,17.3189]
[1646027470157,10.07326515,86.685,86.63,17.3189]
[1646027470558,10.07326515,86.684,86.63,17.3189]
[1646027470957,10.07326515,86.683,86.63,17.3189]
[1646027471364,10.07326515,86.683,86.631,6.0]
[1646027471561,10.07326515,86.682,86.63,17.3189]
[1646027471962,10.07326515,86.681,86.63,17.3189]
[1646027472260,10.07326515,86.68,86.63,17.3189]
[1646027472660,10.07326515,86.679,86.63,17.3189]
[1646027473163,10.07326515,86.678,86.63,17.3189]
[1646027473461,1.66405634,86.692,86.63,17.3189]
[1646027473462,10.07326515,86.677,86.63,17.3189]
[1646027473866,10.07326515,86.676,86.63,17.3189]
[1646027474263,1.66405634,86.692,86.63,17.3189]
[1646027474867,10.05151513,86.691,86.63,17.3189]
[1646027477365,1.67592159,86.69,86.63,17.3189]
[1646027477765,10.05151513,86.689,86.63,17.3189]
[1646027482171,10.05151513,86.689,86.622,22.6225]
[1646027482370,10.615,86.688,86.621,4.616]
[1646027482671,115.3,86.686,86.594,24.7646]
[1646027482889,115.3,86.686,86.595,6.0]
[1646027482890,1.42866224,86.685,86.595,6.0]
[1646027483090,115.3,86.684,86.561,6.0]
[1646027483290,115.3,86.679,86.561,6.0]
[1646027483490,17.33,86.65,86.58,17.3299]
[1646027483691,23.3055,86.649,86.581,52.25355994]
[1646027483889,4.618,86.648,86.581,52.25355994]
[1646027484291,4.618,86.648,86.582,22.7865]
[1646027484491,23.3055,86.649,86.583,6.0]
[1646027484892,10.618,86.648,86.583,6.0]
[1646027485090,20.59376201,86.648,86.583,6.0]
[1646027485491,9.97576201,86.647,86.583,6.0]
[1646027485695,4.618,86.646,86.583,6.0]
[1646027486292,9.97576201,86.645,86.583,6.0]
[1646027486699,17.3312,86.64,86.583,6.0]
[1646027486898,10.618,86.639,86.582,6.0]
[1646027487399,1.65412339,86.638,86.582,6.0]
[1646027487599,6.39954792,86.637,86.582,6.0]
[1646027487999,1.47113191,86.635,86.582,6.0]
[1646027488200,17.3329,86.63,86.581,46.25355994]
[1646027488401,17.3329,86.63,86.56,17.3342]
[1646027488597,17.3329,86.63,86.561,6.0]
[1646027488998,6.26998115,86.629,86.56,17.3342]
[1646027489199,4.619,86.629,86.56,17.3342]
[1646027489399,4.619,86.633,86.561,60.47435162]
[1646027490098,9.95912029,86.632,86.561,60.47435162]
[1646027490299,4.619,86.631,86.561,60.47435162]
[1646027490601,17.3351,86.62,86.561,60.47435162]
[1646027490797,23.7419,86.619,86.561,60.47435162]
[1646027492100,1.47628549,86.618,86.561,60.47435162]
[1646027492300,1.61709095,86.609,86.561,60.47435162]
[1646027493203,6.0,86.608,86.561,60.47435162]
[1646027493603,6.10304953,86.607,86.561,60.47435162]
[1646027495404,1.48404953,86.607,86.561,60.47435162]
[1646027496207,17.3388,86.6,86.54,17.3381]
[1646027496409,17.3388,86.6,86.541,30.0086]
[1646027497009,24.9733,86.599,86.541,30.0086]
[1646027497206,24.9733,86.599,86.542,56.92970662]
[1646027497606,17.3411,86.59,86.542,56.92970662]
[1646027497806,1.39766666,86.589,86.542,56.92970662]
[1646027498109,1.44333624,86.588,86.542,56.92970662]
[1646027501611,12.45,86.589,86.542,56.92970662]
[1646027501813,11.07,86.589,86.542,56.92970662]
[1646027502010,6.45,86.589,86.542,56.92970662]
[1646027503412,11.07,86.589,86.542,56.92970662]
[1646027503614,7.47836938,86.588,86.526,24.7221]
[1646027503815,7.47836938,86.588,86.516,4.62]
[1646027503816,6.11178566,86.587,86.516,4.62]
[1646027504114,8.85857487,86.587,86.516,4.62]
[1646027504317,17.3425,86.58,86.516,4.62]
[1646027504514,4.621,86.579,86.516,4.62]
[1646027504812,4.621,86.579,86.517,52.24681504]
[1646027505014,4.621,86.585,86.517,52.24681504]
[1646027505412,2.74678921,86.584,86.517,52.24681504]
[1646027505615,4.621,86.583,86.517,52.24681504]
[1646027506013,2.74678921,86.582,86.517,52.24681504]
[1646027506213,4.621,86.581,86.517,52.24681504]
[1646027506512,1.85531806,86.569,86.517,52.24681504]
[1646027506714,6.33454365,86.568,86.516,4.62]
[1646027506915,115.3,86.567,86.516,4.62]
[1646027507113,115.3,86.567,86.45,14.05]
[1646027507114,1.59424742,86.566,86.45,14.05]
[1646027507313,1.59424742,86.566,86.459,48.0437]
[1646027507517,1.86020933,86.564,86.459,48.0437]
[1646027507814,22.2837765,86.563,86.46,50.18042329]
[1646027508015,115.3,86.562,86.46,50.18042329]
[1646027508214,115.3,86.56,86.46,50.18042329]
[1646027508414,4.623,86.559,86.46,50.18042329]
[1646027508616,115.3,86.558,86.46,50.18042329]
[1646027508814,1.5894548,86.555,86.46,50.18042329]
[1646027509014,4.623,86.554,86.46,50.18042329]
[1646027509214,115.3,86.549,86.46,50.18042329]
[1646027509419,115.3,86.547,86.46,50.18042329]
[1646027509615,6.40577748,86.546,86.46,50.18042329]
[1646027509815,24.06655398,86.546,86.46,50.18042329]
[1646027510018,26.48315051,86.545,86.46,50.18042329]
[1646027510217,6.23242771,86.544,86.46,50.18042329]